[Event "CCT Chessable Masters Play-In 2025"]
[Site "Online"]
[Date "2025.02.17"]
[Round "3.19"]
[White "Suyarov, Mukhammadzokhid"]
[Black "Vidit, Santosh Gujrathi"]
[Result "1/2-1/2"]
[ECO "C85"]
[WhiteElo "2465"]
[BlackElo "2721"]
[PlyCount "182"]
[EventDate "2025.02.13"]
[EventType "swiss"]
[EventCountry "NET"]
[TimeControl "600"]
[BlackClock "0:00:05"]

1. e4 {[%emt 0:00:01]} e5 {[%emt 0:00:07]} 2. Nf3 {[%emt 0:00:01]} Nc6 {[%emt 0:00:02]} 3. Bb5 {[%emt 0:00:04]} a6 {[%emt 0:00:05]} 4. Ba4 {[%emt 0:00:01]} Nf6 {[%emt 0:00:01]} 5. O-O {[%emt 0:00:02]} Be7 {[%emt 0:00:02]} 6. Bxc6 {[%emt 0:00:06]} dxc6 {[%emt 0:00:01]} 7. d3 {[%emt 0:00:01]} Nd7 {[%emt 0:00:09]} 8. Be3 {[%emt 0:00:02]} O-O {[%emt 0:00:18]} 9. Nbd2 {[%emt 0:00:01]} Re8 {[%emt 0:00:01]} 10. a4 {[%emt 0:00:03]} a5 {[%emt 0:00:04]} 11. Kh1 {[%emt 0:00:10]} Bf8 {[%emt 0:00:07]} 12. h3 {[%emt 0:00:08]} Nc5 {[%emt 0:00:05]} 13. Nc4 {[%emt 0:01:11]} Qf6 {[%emt 0:00:07]} 14. Qd2 {[%emt 0:00:40]} b6 {[%emt 0:00:05]} 15. Ncxe5 {[%emt 0:00:38]} Bd6 {[%emt 0:02:16]} 16. Bd4 {[%emt 0:01:19]} Ne6 {[%emt 0:02:51]} 17. Ng4 {[%emt 0:00:16]} Qg6 {[%emt 0:00:06]} 18. Nh4 {[%emt 0:01:10]} Qh5 {[%emt 0:00:06]} 19. Bxg7 {[%emt 0:00:01]} Kxg7 {[%emt 0:00:52]} 20. Qc3+ {[%emt 0:00:05]} Kf8 {[%emt 0:00:25]} 21. Nf5 {[%emt 0:00:12]} Qg6 {[%emt 0:00:43]} 22. Qh8+ {[%emt 0:00:02]} Qg8 {[%emt 0:00:01]} 23. Qxg8+ {[%emt 0:00:01]} Kxg8 {[%emt 0:00:01]} 24. Nf6+ {[%emt 0:00:01]} Kf8 {[%emt 0:00:01]} 25. Nxh7+ {[%emt 0:00:01]} Kg8 {[%emt 0:00:00]} 26. Nf6+ {[%emt 0:00:00]} Kf8 {[%emt 0:00:01]} 27. Nxe8 {[%emt 0:00:01]} Kxe8 {[%emt 0:00:00]} 28. Nxd6+ {[%emt 0:00:01]} cxd6 {[%emt 0:00:00]} 29. f4 {[%emt 0:00:07]} Ke7 {[%emt 0:00:01]} 30. f5 {[%emt 0:00:20]} Nd4 {[%emt 0:00:01]} 31. Rf2 {[%emt 0:00:10]} c5 {[%emt 0:00:01]} 32. g4 {[%emt 0:00:16]} Bd7 {[%emt 0:00:03]} 33. Kh2 {[%emt 0:00:06]} Rg8 {[%emt 0:00:02]} 34. Kg3 {[%emt 0:00:08]} Nc6 {[%emt 0:00:02]} 35. h4 {[%emt 0:00:27]} f6 {[%emt 0:00:03]} 36. Rf4 {[%emt 0:00:07]} Nd4 {[%emt 0:00:03]} 37. Rf2 {[%emt 0:00:03]} Nc6 {[%emt 0:00:01]} 38. b3 {[%emt 0:00:02]} Ne5 {[%emt 0:00:03]} 39. Rf4 {[%emt 0:00:01]} Be8 {[%emt 0:00:00]} 40. Kh3 {[%emt 0:00:07]} Rh8 {[%emt 0:00:01]} 41. Rg1 {[%emt 0:00:03]} Nc6 {[%emt 0:00:02]} 42. Kg3 {[%emt 0:00:12]} Rg8 {[%emt 0:00:03]} 43. Rg2 {[%emt 0:00:05]} Ne5 {[%emt 0:00:02]} 44. Kf2 {[%emt 0:00:11]} Nf7 {[%emt 0:00:06]} 45. Rf3 {[%emt 0:00:02]} Rh8 {[%emt 0:00:04]} 46. Rh3 {[%emt 0:00:02]} Ne5 {[%emt 0:00:01]} 47. h5 {[%emt 0:00:14]} Nf7 {[%emt 0:00:02]} 48. Kg3 {[%emt 0:00:03]} Ng5 {[%emt 0:00:01]} 49. Rh1 {[%emt 0:00:01]} Bf7 {[%emt 0:00:01]} 50. Kf4 {[%emt 0:00:03]} Kf8 {[%emt 0:00:01]} 51. h6 {[%emt 0:00:08]} Kg8 {[%emt 0:00:01]} 52. d4 {[%emt 0:00:02]} cxd4 {[%emt 0:00:05]} 53. Rd2 {[%emt 0:00:01]} Kf8 {[%emt 0:00:03]} 54. Rxd4 {[%emt 0:00:04]} Ke7 {[%emt 0:00:00]} 55. c4 {[%emt 0:00:03]} Be8 {[%emt 0:00:02]} 56. Rd2 {[%emt 0:00:08]} Rh7 {[%emt 0:00:01]} 57. Rhd1 {[%emt 0:00:06]} Rxh6 {[%emt 0:00:02]} 58. Rxd6 {[%emt 0:00:01]} Rh3 {[%emt 0:00:01]} 59. Rxf6 {[%emt 0:00:01]} Kxf6 {[%emt 0:00:03]} 60. e5+ {[%emt 0:00:01]} Ke7 {[%emt 0:00:00]} 61. f6+ {[%emt 0:00:01]} Ke6 {[%emt 0:00:01]} 62. Rd6+ {[%emt 0:00:01]} Kf7 {[%emt 0:00:00]} 63. Kxg5 {[%emt 0:00:01]} Re3 {[%emt 0:00:02]} 64. Kf5 {[%emt 0:00:00]} Re1 {[%emt 0:00:02]} 65. e6+ {[%emt 0:00:01]} Rxe6 {[%emt 0:00:01]} 66. Rxe6 {[%emt 0:00:01]} Bd7 {[%emt 0:00:00]} 67. g5 {[%emt 0:00:02]} Bxe6+ {[%emt 0:00:00]} 68. Ke5 {[%emt 0:00:00]} Bg4 {[%emt 0:00:01]} 69. Kd6 {[%emt 0:00:02]} Bd1 {[%emt 0:00:00]} 70. Kc6 {[%emt 0:00:02]} Bxb3 {[%emt 0:00:01]} 71. Kxb6 {[%emt 0:00:01]} Bxa4 {[%emt 0:00:02]} 72. Kxa5 {[%emt 0:00:00]} Bc2 {[%emt 0:00:00]} 73. c5 {[%emt 0:00:01]} Be4 {[%emt 0:00:01]} 74. Kb6 {[%emt 0:00:00]} Ke6 {[%emt 0:00:00]} 75. c6 {[%emt 0:00:01]} Kd6 {[%emt 0:00:00]} 76. c7 {[%emt 0:00:00]} Kd7 {[%emt 0:00:01]} 77. f7 {[%emt 0:00:00]} Ke7 {[%emt 0:00:01]} 78. f8=Q+ {[%emt 0:00:00]} Kxf8 {[%emt 0:00:00]} 79. c8=Q+ {[%emt 0:00:01]} Kg7 {[%emt 0:00:00]} 80. Qc5 {[%emt 0:00:00]} Bg6 {[%emt 0:00:01]} 81. Qe5+ {[%emt 0:00:00]} Kf7 {[%emt 0:00:00]} 82. Qf6+ {[%emt 0:00:00]} Ke8 {[%emt 0:00:00]} 83. Qxg6+ {[%emt 0:00:00]} Kd7 {[%emt 0:00:00]} 84. Qh7+ {[%emt 0:00:01]} Ke6 {[%emt 0:00:01]} 85. g6 {[%emt 0:00:00]} Kf5 {[%emt 0:00:00]} 86. g7+ {[%emt 0:00:00]} Kf6 {[%emt 0:00:00]} 87. g8=Q {[%emt 0:00:00]} Ke5 {[%emt 0:00:00]} 88. Qgg6 {[%emt 0:00:00]} Kf4 {[%emt 0:00:00]} 89. Qhh5 {[%emt 0:00:00]} Ke3 {[%emt 0:00:00]} 90. Qgg4 {[%emt 0:00:00]} Kd3 {[%emt 0:00:01]} 91. Qhh3+ Kd2 {[%emt 0:00:00]} 1/2-1/2

[Event "CCT Chessable Masters Play-In 2025"]
[Site "Online"]
[Date "2025.02.17"]
[Round "3.20"]
[White "Nguyen, Ngoc Truong Son"]
[Black "Grischuk, Alexander"]
[Result "1/2-1/2"]
[ECO "A11"]
[WhiteElo "2632"]
[BlackElo "2687"]
[PlyCount "129"]
[EventDate "2025.02.13"]
[EventType "swiss"]
[EventCountry "NET"]
[TimeControl "600"]
[WhiteClock "0:00:42"]
[BlackClock "0:00:33"]

1. d4 {[%emt 0:00:33]} d5 {[%emt 0:00:03]} 2. Nf3 {[%emt 0:00:01]} Nf6 {[%emt 0:00:04]} 3. g3 {[%emt 0:00:04]} Bg4 {[%emt 0:00:05]} 4. Bg2 {[%emt 0:00:03]} e6 {[%emt 0:00:02]} 5. O-O {[%emt 0:00:02]} Nbd7 {[%emt 0:00:11]} 6. c4 {[%emt 0:00:17]} c6 {[%emt 0:00:04]} 7. cxd5 {[%emt 0:00:14]} exd5 {[%emt 0:00:07]} 8. Nc3 {[%emt 0:00:34]} Be7 {[%emt 0:00:08]} 9. Bf4 {[%emt 0:00:14]} O-O {[%emt 0:00:04]} 10. Qc2 {[%emt 0:00:10]} Re8 {[%emt 0:00:22]} 11. Rad1 {[%emt 0:00:10]} h6 {[%emt 0:00:03]} 12. Ne5 {[%emt 0:00:03]} Be6 {[%emt 0:00:04]} 13. a3 {[%emt 0:00:12]} Bf8 {[%emt 0:00:34]} 14. h3 {[%emt 0:00:16]} Nb6 {[%emt 0:00:30]} 15. Kh2 {[%emt 0:00:05]} a5 {[%emt 0:00:20]} 16. Bc1 {[%emt 0:00:07]} g6 {[%emt 0:00:41]} 17. Na4 {[%emt 0:00:17]} Bf5 {[%emt 0:00:19]} 18. Qb3 {[%emt 0:00:03]} Nxa4 {[%emt 0:00:00]} 19. Qxa4 {[%emt 0:00:00]} Nd7 {[%emt 0:00:11]} 20. Qb3 {[%emt 0:00:51]} Qb6 {[%emt 0:00:21]} 21. Qxb6 {[%emt 0:00:31]} Nxb6 {[%emt 0:00:00]} 22. Rfe1 {[%emt 0:00:06]} Bg7 {[%emt 0:00:38]} 23. f4 {[%emt 0:01:10]} Bc2 {[%emt 0:00:22]} 24. Rd2 {[%emt 0:00:01]} Bb3 {[%emt 0:00:00]} 25. e3 {[%emt 0:00:02]} a4 {[%emt 0:00:12]} 26. Rf2 {[%emt 0:00:03]} Nc4 {[%emt 0:00:05]} 27. Bf1 {[%emt 0:00:03]} Re7 {[%emt 0:00:22]} 28. Bxc4 {[%emt 0:00:32]} Bxc4 {[%emt 0:00:12]} 29. Bd2 {[%emt 0:00:01]} Rae8 {[%emt 0:00:04]} 30. g4 {[%emt 0:00:04]} Bb5 {[%emt 0:00:42]} 31. Bb4 {[%emt 0:00:02]} Re6 {[%emt 0:00:01]} 32. Bd2 {[%emt 0:00:05]} g5 {[%emt 0:00:06]} 33. Kg3 {[%emt 0:00:09]} f6 {[%emt 0:00:06]} 34. Nf3 {[%emt 0:00:23]} Bf8 {[%emt 0:00:09]} 35. h4 {[%emt 0:00:08]} Bd6 {[%emt 0:00:08]} 36. hxg5 {[%emt 0:00:08]} hxg5 {[%emt 0:00:01]} 37. Kg2 {[%emt 0:00:12]} Re4 {[%emt 0:00:12]} 38. Kg3 {[%emt 0:00:15]} Kg7 {[%emt 0:00:13]} 39. Rh2 {[%emt 0:00:01]} gxf4+ {[%emt 0:00:19]} 40. exf4 {[%emt 0:00:02]} Bxf4+ {[%emt 0:00:13]} 41. Bxf4 {[%emt 0:00:01]} Rxe1 {[%emt 0:00:01]} 42. Nxe1 {[%emt 0:00:01]} Rxe1 {[%emt 0:00:00]} 43. g5 {[%emt 0:00:08]} Rg1+ {[%emt 0:00:14]} 44. Kf2 {[%emt 0:00:01]} Rf1+ {[%emt 0:00:01]} 45. Ke3 {[%emt 0:00:07]} fxg5 {[%emt 0:00:08]} 46. Bxg5 {[%emt 0:00:00]} Rd1 {[%emt 0:00:02]} 47. Rd2 {[%emt 0:00:04]} Re1+ {[%emt 0:00:01]} 48. Kf2 {[%emt 0:00:01]} Rf1+ {[%emt 0:00:06]} 49. Kg2 {[%emt 0:00:04]} Kg6 {[%emt 0:00:00]} 50. Be7 {[%emt 0:00:03]} Re1 {[%emt 0:00:07]} 51. Bd6 {[%emt 0:00:06]} Kf5 {[%emt 0:00:01]} 52. Kf3 {[%emt 0:00:03]} Rh1 {[%emt 0:00:03]} 53. Rh2 {[%emt 0:00:03]} Rf1+ {[%emt 0:00:05]} 54. Ke3 {[%emt 0:00:02]} Re1+ {[%emt 0:00:02]} 55. Kd2 {[%emt 0:00:01]} Rb1 {[%emt 0:00:02]} 56. Ke3 {[%emt 0:00:02]} Rd1 {[%emt 0:00:06]} 57. Rf2+ {[%emt 0:00:06]} Ke6 {[%emt 0:00:02]} 58. Bc5 {[%emt 0:00:04]} Rd3+ {[%emt 0:00:03]} 59. Kf4 {[%emt 0:00:00]} Rh3 {[%emt 0:00:00]} 60. Rg2 {[%emt 0:00:03]} Rh4+ {[%emt 0:00:02]} 61. Ke3 {[%emt 0:00:02]} Kf5 {[%emt 0:00:01]} 62. Rf2+ {[%emt 0:00:01]} Ke6 {[%emt 0:00:00]} 63. Rg2 {[%emt 0:00:00]} Kf5 {[%emt 0:00:01]} 64. Rf2+ {[%emt 0:00:01]} Ke6 {[%emt 0:00:01]} 65. Rg2 {[%emt 0:00:00]} 1/2-1/2

[Event "CCT Chessable Masters Play-In 2025"]
[Site "Online"]
[Date "2025.02.17"]
[Round "3.21"]
[White "Rakhmanov, Aleksandr"]
[Black "Sevian, Samuel"]
[Result "1-0"]
[ECO "A20"]
[WhiteElo "2585"]
[BlackElo "2692"]
[PlyCount "97"]
[EventDate "2025.02.13"]
[EventType "swiss"]
[EventCountry "NET"]
[TimeControl "600"]
[WhiteClock "0:01:13"]
[BlackClock "0:00:48"]

1. c4 {[%emt 0:00:01]} e5 {[%emt 0:00:02]} 2. Nf3 {[%emt 0:00:02]} e4 {[%emt 0:00:11]} 3. Nd4 {[%emt 0:00:01]} Nc6 {[%emt 0:00:00]} 4. e3 {[%emt 0:00:01]} Nf6 {[%emt 0:00:08]} 5. Nc3 {[%emt 0:00:01]} Bb4 {[%emt 0:00:04]} 6. Qb3 {[%emt 0:00:02]} a5 {[%emt 0:00:05]} 7. a3 {[%emt 0:00:02]} Bc5 {[%emt 0:00:04]} 8. Nde2 {[%emt 0:00:03]} O-O {[%emt 0:00:10]} 9. Ng3 {[%emt 0:00:01]} Re8 {[%emt 0:00:01]} 10. Qc2 {[%emt 0:00:00]} Qe7 {[%emt 0:00:02]} 11. Nd5 {[%emt 0:00:01]} Qe5 {[%emt 0:01:22]} 12. Nxf6+ {[%emt 0:00:02]} Qxf6 {[%emt 0:00:26]} 13. Nxe4 {[%emt 0:00:02]} Qg6 {[%emt 0:00:01]} 14. d3 {[%emt 0:00:00]} d6 {[%emt 0:00:01]} 15. Bd2 {[%emt 0:00:04]} Bf5 {[%emt 0:00:11]} 16. f3 {[%emt 0:01:09]} Bb6 {[%emt 0:00:22]} 17. O-O-O {[%emt 0:00:08]} a4 {[%emt 0:00:15]} 18. g4 {[%emt 0:00:09]} Bxe4 {[%emt 0:00:16]} 19. dxe4 {[%emt 0:00:07]} Ba5 {[%emt 0:00:01]} 20. h4 {[%emt 0:00:14]} Qf6 {[%emt 0:00:18]} 21. Be2 {[%emt 0:00:33]} Qe5 {[%emt 0:00:13]} 22. Kb1 {[%emt 0:00:11]} Qc5 {[%emt 0:00:01]} 23. Bc1 {[%emt 0:00:05]} Qe5 {[%emt 0:00:16]} 24. g5 {[%emt 0:00:26]} Bb6 {[%emt 0:00:06]} 25. Bd3 {[%emt 0:00:19]} Na5 {[%emt 0:00:08]} 26. Qxa4 {[%emt 0:00:17]} Nc6 {[%emt 0:00:06]} 27. Qc2 {[%emt 0:00:07]} Ra7 {[%emt 0:00:07]} 28. f4 {[%emt 0:00:04]} Qe7 {[%emt 0:00:07]} 29. h5 {[%emt 0:00:15]} Rea8 {[%emt 0:00:13]} 30. Qc3 {[%emt 0:00:24]} Ba5 {[%emt 0:00:16]} 31. Qb3 {[%emt 0:00:06]} Kh8 {[%emt 0:00:39]} 32. Bc2 {[%emt 0:00:25]} Bb6 {[%emt 0:00:34]} 33. e5 {[%emt 0:00:35]} dxe5 {[%emt 0:00:35]} 34. Qd3 {[%emt 0:00:01]} e4 {[%emt 0:00:01]} 35. Qxe4 {[%emt 0:00:01]} Qxe4 {[%emt 0:00:00]} 36. Bxe4 {[%emt 0:00:00]} Re8 {[%emt 0:00:00]} 37. Bxc6 {[%emt 0:00:07]} bxc6 {[%emt 0:00:00]} 38. Rd7 {[%emt 0:00:03]} Kg8 {[%emt 0:00:02]} 39. Rhd1 {[%emt 0:00:02]} Raa8 {[%emt 0:00:04]} 40. b4 {[%emt 0:00:36]} c5 {[%emt 0:00:01]} 41. b5 {[%emt 0:00:03]} Ra4 {[%emt 0:00:01]} 42. g6 {[%emt 0:00:23]} hxg6 {[%emt 0:00:12]} 43. hxg6 {[%emt 0:00:01]} Rf8 {[%emt 0:00:09]} 44. Re7 {[%emt 0:00:36]} Rxc4 {[%emt 0:01:09]} 45. Bb2 {[%emt 0:00:21]} Ra4 {[%emt 0:00:00]} 46. gxf7+ {[%emt 0:00:13]} Kh7 {[%emt 0:00:01]} 47. Rg1 {[%emt 0:00:04]} Raa8 {[%emt 0:00:09]} 48. Rxg7+ {[%emt 0:00:17]} Kh6 {[%emt 0:00:02]} 49. Re6+ {[%emt 0:00:02]} 1-0

[Event "CCT Chessable Masters Play-In 2025"]
[Site "Online"]
[Date "2025.02.17"]
[Round "3.22"]
[White "Sarana, Alexey"]
[Black "Lobanov, Sergei"]
[Result "0-1"]
[ECO "D35"]
[WhiteElo "2672"]
[BlackElo "2508"]
[PlyCount "84"]
[EventDate "2025.02.13"]
[EventType "swiss"]
[EventCountry "NET"]
[TimeControl "600"]
[WhiteClock "0:04:18"]
[BlackClock "0:03:44"]

1. d4 {[%emt 0:00:01]} Nf6 {[%emt 0:00:01]} 2. c4 {[%emt 0:00:05]} e6 {[%emt 0:00:01]} 3. Nc3 {[%emt 0:00:04]} d5 {[%emt 0:00:01]} 4. cxd5 {[%emt 0:00:15]} exd5 {[%emt 0:00:00]} 5. Bg5 {[%emt 0:00:01]} Be7 {[%emt 0:00:00]} 6. e3 {[%emt 0:00:01]} h6 {[%emt 0:00:01]} 7. Bh4 {[%emt 0:00:04]} O-O {[%emt 0:00:01]} 8. Bd3 {[%emt 0:00:01]} c6 {[%emt 0:00:01]} 9. h3 {[%emt 0:00:10]} a5 {[%emt 0:00:07]} 10. Bg3 {[%emt 0:00:06]} Bd6 {[%emt 0:00:04]} 11. Bxd6 {[%emt 0:00:03]} Qxd6 {[%emt 0:00:01]} 12. Nf3 {[%emt 0:00:01]} Re8 {[%emt 0:00:12]} 13. Qc2 {[%emt 0:00:03]} Be6 {[%emt 0:00:13]} 14. Ne5 {[%emt 0:00:43]} Na6 {[%emt 0:00:08]} 15. a3 {[%emt 0:00:10]} c5 {[%emt 0:00:01]} 16. O-O {[%emt 0:00:08]} Nc7 {[%emt 0:00:08]} 17. a4 {[%emt 0:00:28]} Na6 {[%emt 0:00:22]} 18. Nb5 {[%emt 0:00:22]} Qb6 {[%emt 0:00:02]} 19. dxc5 {[%emt 0:00:13]} Nxc5 {[%emt 0:00:02]} 20. Nf3 {[%emt 0:00:02]} Rac8 {[%emt 0:00:24]} 21. Nfd4 {[%emt 0:00:04]} Bd7 {[%emt 0:00:02]} 22. Bf5 {[%emt 0:00:24]} Ne6 {[%emt 0:00:18]} 23. Qd1 {[%emt 0:00:05]} Nxd4 {[%emt 0:00:10]} 24. Bxd7 {[%emt 0:00:04]} Nxd7 {[%emt 0:00:01]} 25. Qxd4 {[%emt 0:00:04]} Qxd4 {[%emt 0:00:09]} 26. Nxd4 {[%emt 0:00:01]} Ne5 {[%emt 0:00:18]} 27. Rfd1 {[%emt 0:00:12]} g6 {[%emt 0:00:45]} 28. Kf1 {[%emt 0:00:04]} Kf8 {[%emt 0:00:03]} 29. Rac1 {[%emt 0:00:12]} Ke7 {[%emt 0:00:08]} 30. Ke2 {[%emt 0:00:04]} Red8 {[%emt 0:00:30]} 31. Nb5 {[%emt 0:00:10]} Rxc1 {[%emt 0:00:22]} 32. Rxc1 {[%emt 0:00:01]} Nc6 {[%emt 0:00:01]} 33. Kd3 {[%emt 0:00:15]} f5 {[%emt 0:00:11]} 34. Rc5 {[%emt 0:00:17]} Nb4+ {[%emt 0:00:58]} 35. Kc3 {[%emt 0:00:05]} Na6 {[%emt 0:00:05]} 36. Kd4 {[%emt 0:00:14]} Nxc5 {[%emt 0:00:01]} 37. Kxc5 {[%emt 0:00:00]} Rc8+ {[%emt 0:00:01]} 38. Kb6 {[%emt 0:00:05]} Rc2 {[%emt 0:00:01]} 39. b3 {[%emt 0:00:02]} Rxf2 {[%emt 0:00:02]} 40. Kxb7 {[%emt 0:00:01]} f4 {[%emt 0:00:10]} 41. exf4 {[%emt 0:00:09]} Rxf4 {[%emt 0:00:01]} 42. Nc3 {[%emt 0:00:08]} Kd6 {[%emt 0:00:09]} 0-1

[Event "CCT Chessable Masters Play-In 2025"]
[Site "Online"]
[Date "2025.02.17"]
[Round "3.23"]
[White "Naroditsky, Daniel"]
[Black "Yakubboev, Nodirbek"]
[Result "0-1"]
[ECO "C26"]
[WhiteElo "2619"]
[BlackElo "2659"]
[PlyCount "124"]
[EventDate "2025.02.13"]
[EventType "swiss"]
[EventCountry "NET"]
[TimeControl "600"]
[WhiteClock "0:00:48"]
[BlackClock "0:01:26"]

1. e4 {[%emt 0:00:06]} e5 {[%emt 0:00:02]} 2. Nc3 {[%emt 0:00:03]} Nf6 {[%emt 0:00:02]} 3. g3 {[%emt 0:00:00]} Bc5 {[%emt 0:00:07]} 4. Bg2 {[%emt 0:00:05]} d6 {[%emt 0:00:01]} 5. Nf3 {[%emt 0:00:01]} Nc6 {[%emt 0:00:02]} 6. d3 {[%emt 0:00:01]} a5 {[%emt 0:00:02]} 7. O-O {[%emt 0:00:01]} h6 {[%emt 0:00:05]} 8. Be3 {[%emt 0:00:01]} Bxe3 {[%emt 0:00:54]} 9. fxe3 {[%emt 0:00:00]} Ne7 {[%emt 0:00:01]} 10. Nh4 {[%emt 0:00:09]} Bg4 {[%emt 0:00:13]} 11. Qe1 {[%emt 0:00:15]} Qd7 {[%emt 0:00:03]} 12. a4 {[%emt 0:00:26]} c6 {[%emt 0:00:05]} 13. d4 {[%emt 0:00:10]} Nh7 {[%emt 0:00:27]} 14. Qf2 {[%emt 0:00:12]} O-O {[%emt 0:00:02]} 15. Nf3 {[%emt 0:00:47]} Ng6 {[%emt 0:00:16]} 16. Kh1 {[%emt 0:00:11]} Rae8 {[%emt 0:00:04]} 17. Rad1 {[%emt 0:00:09]} f5 {[%emt 0:00:22]} 18. d5 {[%emt 0:01:14]} cxd5 {[%emt 0:01:35]} 19. Rxd5 {[%emt 0:00:25]} Nf6 {[%emt 0:00:13]} 20. Rxa5 {[%emt 0:00:13]} fxe4 {[%emt 0:00:01]} 21. Ng1 {[%emt 0:00:12]} d5 {[%emt 0:00:11]} 22. Qd2 {[%emt 0:00:01]} Ne7 {[%emt 0:00:11]} 23. Rb5 {[%emt 0:00:20]} Be6 {[%emt 0:00:37]} 24. h3 {[%emt 0:00:01]} Nh5 {[%emt 0:00:09]} 25. Rxf8+ {[%emt 0:00:07]} Rxf8 {[%emt 0:00:01]} 26. Kh2 {[%emt 0:00:02]} Nf6 {[%emt 0:00:15]} 27. Nge2 {[%emt 0:00:24]} Nh7 {[%emt 0:00:18]} 28. Nxe4 {[%emt 0:00:23]} dxe4 {[%emt 0:00:01]} 29. Qxd7 {[%emt 0:00:00]} Bxd7 {[%emt 0:00:00]} 30. Rxb7 {[%emt 0:00:00]} Nf6 {[%emt 0:00:03]} 31. Nc3 {[%emt 0:00:18]} Nf5 {[%emt 0:00:13]} 32. Nxe4 {[%emt 0:00:18]} Bxa4 {[%emt 0:00:04]} 33. Nxf6+ {[%emt 0:00:11]} Rxf6 {[%emt 0:00:01]} 34. Bd5+ {[%emt 0:00:05]} Kf8 {[%emt 0:00:09]} 35. Rb8+ {[%emt 0:00:28]} Ke7 {[%emt 0:00:03]} 36. Rb7+ {[%emt 0:00:07]} Kd6 {[%emt 0:00:10]} 37. e4 {[%emt 0:00:01]} Bxc2 {[%emt 0:00:16]} 38. Rb6+ {[%emt 0:00:14]} Kc5 {[%emt 0:00:01]} 39. Rb7 {[%emt 0:00:12]} Ne3 {[%emt 0:00:08]} 40. Rc7+ {[%emt 0:00:29]} Kd4 {[%emt 0:00:06]} 41. Ba8 {[%emt 0:00:06]} Rf2+ {[%emt 0:00:16]} 42. Kg1 {[%emt 0:00:01]} Rf1+ {[%emt 0:00:01]} 43. Kh2 {[%emt 0:00:00]} Bxe4 {[%emt 0:00:02]} 44. Rd7+ {[%emt 0:00:04]} Nd5 {[%emt 0:00:07]} 45. g4 {[%emt 0:00:00]} g5 {[%emt 0:00:06]} 46. b4 {[%emt 0:00:04]} Rf2+ {[%emt 0:00:02]} 47. Kg1 {[%emt 0:00:01]} Rb2 {[%emt 0:00:00]} 48. Rd6 {[%emt 0:00:06]} Rxb4 {[%emt 0:00:03]} 49. Rxh6 {[%emt 0:00:01]} Nf4 {[%emt 0:00:01]} 50. Rd6+ {[%emt 0:00:04]} Ke3 {[%emt 0:00:02]} 51. Bxe4 {[%emt 0:00:01]} Kxe4 {[%emt 0:00:02]} 52. h4 {[%emt 0:00:04]} gxh4 {[%emt 0:00:02]} 53. g5 {[%emt 0:00:00]} Kf3 {[%emt 0:00:02]} 54. g6 {[%emt 0:00:04]} Kg3 {[%emt 0:00:03]} 55. Rd1 {[%emt 0:00:02]} Nxg6 {[%emt 0:00:01]} 56. Kh1 {[%emt 0:00:01]} Nf4 {[%emt 0:00:02]} 57. Rg1+ {[%emt 0:00:00]} Kf3 {[%emt 0:00:00]} 58. Rf1+ {[%emt 0:00:02]} Kg4 {[%emt 0:00:00]} 59. Rf2 {[%emt 0:00:02]} e4 {[%emt 0:00:02]} 60. Kh2 {[%emt 0:00:04]} e3 {[%emt 0:00:01]} 61. Kg1 {[%emt 0:00:01]} exf2+ {[%emt 0:00:01]} 62. Kf1 {[%emt 0:00:02]} Rb1+ {[%emt 0:00:04]} 0-1

[Event "CCT Chessable Masters Play-In 2025"]
[Site "Online"]
[Date "2025.02.17"]
[Round "3.24"]
[White "Theodorou, Nikolas"]
[Black "Narayanan S L"]
[Result "0-1"]
[ECO "A55"]
[WhiteElo "2611"]
[BlackElo "2622"]
[PlyCount "138"]
[EventDate "2025.02.13"]
[EventType "swiss"]
[EventCountry "NET"]
[TimeControl "600"]
[WhiteClock "0:00:19"]
[BlackClock "0:05:44"]

1. d4 {[%emt 0:00:01]} Nf6 {[%emt 0:00:01]} 2. c4 {[%emt 0:00:00]} d6 {[%emt 0:00:01]} 3. Nf3 {[%emt 0:00:06]} Nbd7 {[%emt 0:00:01]} 4. Nc3 {[%emt 0:00:02]} e5 {[%emt 0:00:01]} 5. e4 {[%emt 0:00:01]} Be7 {[%emt 0:00:01]} 6. Be2 {[%emt 0:00:00]} O-O {[%emt 0:00:01]} 7. O-O {[%emt 0:00:01]} Re8 {[%emt 0:00:00]} 8. Re1 {[%emt 0:00:02]} Bf8 {[%emt 0:00:02]} 9. d5 {[%emt 0:00:13]} Nc5 {[%emt 0:00:02]} 10. Qc2 {[%emt 0:00:15]} a5 {[%emt 0:00:00]} 11. b3 {[%emt 0:00:09]} c6 {[%emt 0:00:06]} 12. Be3 {[%emt 0:00:05]} cxd5 {[%emt 0:00:06]} 13. cxd5 {[%emt 0:00:19]} b6 {[%emt 0:00:12]} 14. Nd2 {[%emt 0:00:09]} Ng4 {[%emt 0:00:03]} 15. Bxg4 {[%emt 0:00:09]} Bxg4 {[%emt 0:00:00]} 16. a3 {[%emt 0:00:00]} Bd7 {[%emt 0:00:56]} 17. b4 {[%emt 0:00:12]} Na6 {[%emt 0:00:00]} 18. Qb2 {[%emt 0:00:22]} b5 {[%emt 0:00:02]} 19. f3 {[%emt 0:00:10]} g6 {[%emt 0:00:04]} 20. bxa5 {[%emt 0:01:40]} Qxa5 {[%emt 0:00:02]} 21. Nb3 {[%emt 0:00:00]} Qd8 {[%emt 0:00:06]} 22. Qe2 {[%emt 0:00:02]} Rb8 {[%emt 0:00:21]} 23. Na2 {[%emt 0:00:00]} Nc5 {[%emt 0:00:04]} 24. Rab1 {[%emt 0:00:01]} Ra8 {[%emt 0:00:12]} 25. Nc3 {[%emt 0:00:58]} Na4 {[%emt 0:00:18]} 26. Na2 {[%emt 0:00:07]} Nb6 {[%emt 0:00:01]} 27. Bxb6 {[%emt 0:01:16]} Qxb6+ {[%emt 0:00:02]} 28. Qf2 {[%emt 0:00:00]} Qxf2+ {[%emt 0:00:04]} 29. Kxf2 {[%emt 0:00:00]} Rxa3 {[%emt 0:00:00]} 30. Nb4 {[%emt 0:00:00]} Rc8 {[%emt 0:00:02]} 31. Ke2 {[%emt 0:00:08]} Bh6 {[%emt 0:00:06]} 32. Rb2 {[%emt 0:00:05]} f5 {[%emt 0:00:14]} 33. Ra1 {[%emt 0:00:10]} Rxa1 {[%emt 0:00:02]} 34. Nxa1 {[%emt 0:00:00]} fxe4 {[%emt 0:00:01]} 35. fxe4 {[%emt 0:00:00]} Rc4 {[%emt 0:00:04]} 36. Nc6 {[%emt 0:00:24]} Rxe4+ {[%emt 0:00:01]} 37. Kf1 {[%emt 0:00:10]} Rc4 {[%emt 0:00:03]} 38. Nc2 {[%emt 0:00:13]} Bxc6 {[%emt 0:00:02]} 39. dxc6 {[%emt 0:00:00]} Rxc6 {[%emt 0:00:01]} 40. Ra2 {[%emt 0:00:02]} Bd2 {[%emt 0:00:04]} 41. Ke2 {[%emt 0:00:01]} Bc3 {[%emt 0:00:01]} 42. Ne3 {[%emt 0:00:02]} h5 {[%emt 0:00:09]} 43. Nd5 {[%emt 0:00:00]} Rc5 {[%emt 0:00:01]} 44. Nf6+ {[%emt 0:00:02]} Kf7 {[%emt 0:00:01]} 45. Ne4 {[%emt 0:00:01]} Rc6 {[%emt 0:00:02]} 46. Kd3 {[%emt 0:00:05]} b4 {[%emt 0:00:01]} 47. Ra7+ {[%emt 0:00:02]} Ke6 {[%emt 0:00:02]} 48. Ng5+ {[%emt 0:00:01]} Kd5 {[%emt 0:00:01]} 49. Ne4 {[%emt 0:00:03]} Bd4 {[%emt 0:00:01]} 50. Rb7 {[%emt 0:00:08]} Rb6 {[%emt 0:00:02]} 51. Rc7 {[%emt 0:00:07]} b3 {[%emt 0:00:01]} 52. Nd2 {[%emt 0:00:55]} b2 {[%emt 0:00:01]} 53. Nb1 {[%emt 0:00:00]} e4+ {[%emt 0:00:05]} 54. Ke2 {[%emt 0:00:00]} Rc6 {[%emt 0:00:01]} 55. Rxc6 {[%emt 0:00:02]} Kxc6 {[%emt 0:00:01]} 56. Kd2 {[%emt 0:00:00]} d5 {[%emt 0:00:01]} 57. h3 {[%emt 0:00:00]} Kc5 {[%emt 0:00:00]} 58. Kc2 {[%emt 0:00:00]} Kd6 {[%emt 0:00:01]} 59. Kd2 {[%emt 0:00:00]} Ke5 {[%emt 0:00:01]} 60. Ke2 {[%emt 0:00:00]} Kf4 {[%emt 0:00:00]} 61. Nd2 {[%emt 0:00:01]} g5 {[%emt 0:00:03]} 62. Nb1 {[%emt 0:00:01]} g4 {[%emt 0:00:00]} 63. hxg4 {[%emt 0:00:01]} hxg4 {[%emt 0:00:00]} 64. Na3 {[%emt 0:00:01]} Kg3 {[%emt 0:00:02]} 65. Kf1 {[%emt 0:00:01]} e3 {[%emt 0:00:02]} 66. Nb1 {[%emt 0:00:02]} Bc5 {[%emt 0:00:01]} 67. Nc3 {[%emt 0:00:01]} d4 {[%emt 0:00:00]} 68. Nb1 {[%emt 0:00:16]} d3 {[%emt 0:00:03]} 69. Nd2 {[%emt 0:00:16]} e2+ {[%emt 0:00:03]} 0-1